fUSD/lending_fUSD_20241003
["ID","MTS","AMOUNT","RATE_DAILY","PERIOD"]
[339795231,1727987556244,-500.0,0.00036438,120]
[339795232,1727987556254,-2770.27,0.00036438,120]
[339795233,1727987556264,-2126.28,0.00036438,120]
[339795234,1727987556274,-500.0,0.00036438,120]
[339795235,1727987556283,-3109.58,0.00036438,120]
[339795236,1727987556294,-500.0,0.00036438,120]
[339795237,1727987556304,-1989.39,0.00036438,120]
[339795238,1727987556314,-2838.83,0.00036438,120]
[339795239,1727987556324,-2489.9,0.00036438,120]
[339795240,1727987556334,-2454.73,0.00036438,120]
[339795241,1727987556344,-1548.63,0.00036438,120]
[339795242,1727987556354,-1539.86,0.00036438,120]
[339795243,1727987556363,-751.5,0.00036438,120]
[339795244,1727987556378,-1135.51,0.00036438,120]
[339795245,1727987556388,-500.0,0.00036438,120]
[339795246,1727987556398,-26307.75,0.00036438,120]
[339795247,1727987556409,-1359.32,0.00036438,120]
[339795248,1727987556420,-920.13,0.00036438,120]
[339795249,1727987556430,-2373.28,0.00036438,120]
[339795250,1727987556440,-723.9,0.00036438,120]
[339795251,1727987556450,-500.0,0.00036438,120]
[339795252,1727987556461,-683.05,0.00036438,120]
[339795253,1727987556471,-500.0,0.00036438,120]
[339795254,1727987556482,-1328.33,0.00036438,120]
[339795255,1727987556491,-1718.99,0.00036438,120]
[339795256,1727987556503,-500.0,0.00036438,120]
[339795257,1727987556516,-2515.59,0.00036438,120]
[339795258,1727987556527,-953.41,0.00036438,120]
[339795259,1727987556538,-876.22,0.00036438,120]
[339795260,1727987556549,-1281.35,0.00036438,120]
[339795261,1727987556560,-2264.01,0.00036438,120]
[339795262,1727987556571,-2588.02,0.00036438,120]
[339795263,1727987556581,-1057.1,0.00036438,120]
[339795264,1727987556592,-1543.66,0.00036438,120]
[339795265,1727987556603,-567.28,0.00036438,120]
[339795266,1727987556614,-1173.73,0.00036438,120]
[339795267,1727987556626,-622.45,0.00036438,120]
[339795268,1727987556639,-831.03,0.00036438,120]
[339795269,1727987556649,-574.46,0.00036438,120]
[339795270,1727987556659,-605.72,0.00036438,120]
[339795271,1727987556670,-999.57,0.00036438,120]
[339795272,1727987556681,-656.14,0.00036438,24]
[339795273,1727987556692,-1059.55,0.00036438,120]
[339795274,1727987556701,-1114.36,0.00036438,120]
[339795275,1727987556711,-500.0,0.00036438,120]
[339795276,1727987556720,-2557.98,0.00036438,120]
[339795277,1727987556730,-985.85,0.00036438,120]
[339795278,1727987556740,-2619.08,0.00036438,120]
[339795279,1727987556751,-2196.8,0.00036438,120]
[339795280,1727987556760,-1368.57,0.00036438,120]
[339795281,1727987556770,-534.46,0.00036438,120]
[339795282,1727987556780,-623.45,0.00036438,120]
[339795283,1727987556790,-1760.97,0.00036438,120]
[339795284,1727987556799,-4833.89,0.00036438,120]
[339795285,1727987556809,-1036.03,0.00036438,120]
[339795286,1727987556818,-613.95,0.00036438,120]
[339795287,1727987556828,-1295.57,0.00036438,120]
[339795288,1727987556837,-1437.23,0.00036438,120]
[339795289,1727987556847,-1100.59,0.00036438,120]
[339795290,1727987556856,-581.64,0.00036438,120]
[339795291,1727987556868,-500.0,0.00036438,120]
[339795292,1727987556878,-1584.05,0.00036438,120]
[339795293,1727987556887,-500.0,0.00036438,120]
[339795294,1727987556896,-1739.53,0.00036438,120]
[339795295,1727987556906,-780.59,0.00036438,120]
[339795296,1727987556915,-500.0,0.00036438,120]
[339795297,1727987556924,-10179.37,0.00036438,120]
[339795298,1727987556934,-1002.66,0.00036438,120]
[339795299,1727987556944,-567.89,0.00036438,120]
[339795300,1727987556954,-504.47,0.00036438,120]
[339795301,1727987556965,-859.91,0.00036438,120]
[339795302,1727987556974,-8270.07,0.00036438,21]
[339795303,1727987556984,-669.41,0.00036438,120]
[339795304,1727987556993,-2304.02,0.00036438,120]
[339795305,1727987557002,-4586.08,0.00036438,120]
[339795306,1727987557012,-631.12,0.00036438,120]
[339795307,1727987557021,-1138.44,0.00036438,120]
[339795308,1727987557031,-811.67,0.00036438,120]
[339795309,1727987557041,-536.29,0.00036438,120]
[339795310,1727987557051,-994.04,0.00036438,120]
[339795311,1727987557060,-7209.0841275,0.00036475,2]
[339795312,1727987557071,-200.03834684,0.00036477,2]
[339795313,1727987557080,-19687.42683482,0.000365,30]
[339795314,1727987557090,-1000000.0,0.000365,120]
[339795315,1727987557100,-200.03834684,0.00036612,2]
[339795316,1727987557110,-2110.0,0.00036698,2]
[339795317,1727987557119,-200.0,0.000367,19]
[339795318,1727987557129,-500.0,0.00036712,120]
[339795319,1727987557138,-1830.04,0.00036712,120]
[339795320,1727987557148,-1465.14,0.00036712,120]
[339795321,1727987557157,-731.74,0.00036712,120]
[339795322,1727987557167,-500.0,0.00036712,120]
[339795323,1727987557176,-500.0,0.00036712,120]
[339795324,1727987557185,-1375.31,0.00036712,120]
[339795325,1727987557194,-668.57,0.00036712,120]
[339795326,1727987557204,-500.0,0.00036712,120]
[339795327,1727987557216,-1062.68,0.00036712,120]
[339795328,1727987557226,-1108.65,0.00036712,120]
[339795329,1727987557235,-1917.75,0.00036712,120]
[339795330,1727987557245,-1239.66,0.00036712,120]
[339795331,1727987557255,-749.5,0.00036712,120]
[339795332,1727987557264,-1219.3,0.00036712,120]
[339795333,1727987557273,-1706.35,0.00036712,120]
[339795334,1727987557283,-1816.28,0.00036712,120]
[339795335,1727987557293,-608.59,0.00036712,120]
[339795336,1727987557302,-688.2,0.00036712,120]
[339795337,1727987557311,-818.32,0.00036712,120]
[339795338,1727987557321,-2173.75,0.00036712,120]
[339795339,1727987557330,-721.06,0.00036712,120]
[339795340,1727987557340,-2649.5,0.00036712,120]
[339795341,1727987557349,-500.0,0.00036712,120]
[339795342,1727987557359,-500.0,0.00036712,120]
[339795343,1727987557368,-500.0,0.00036712,120]
[339795344,1727987557378,-952.32,0.00036712,120]
[339795345,1727987557387,-500.0,0.00036712,15]
[339795346,1727987557397,-508.75,0.00036712,120]
[339795347,1727987557406,-500.0,0.00036712,120]
[339795348,1727987557415,-2782.16,0.00036712,120]
[339795349,1727987557424,-500.0,0.00036712,120]
[339795350,1727987557433,-500.0,0.00036712,120]
[339795351,1727987557442,-799.66,0.00036712,120]
[339795352,1727987557451,-500.0,0.00036712,120]
[339795353,1727987557466,-528.54,0.00036712,120]
[339795354,1727987557475,-500.0,0.00036712,120]
[339795355,1727987557484,-1116.48,0.00036712,120]
[339795356,1727987557493,-500.0,0.00036712,120]
[339795357,1727987557502,-500.0,0.00036712,120]
[339795358,1727987557511,-369.39993052,0.00036712,120]
[339795359,1727987557520,-667.6,0.00036712,120]
[339795360,1727987557529,-516.86,0.00036712,120]
[339795361,1727987557539,-577.36,0.00036712,120]
[339795362,1727987557548,-500.0,0.00036712,120]
[339795363,1727987557557,-1181.76,0.00036712,120]
[339795364,1727987557566,-2275.0,0.00036712,120]
[339795365,1727987557575,-1059.01,0.00036712,120]
[339795366,1727987557585,-500.64082461,0.00036712,120]
[339795367,1727987557824,-500.0,0.00036712,120]
[339795368,1727987557835,-678.32,0.00036712,120]
[339795369,1727987557846,-908.96,0.00036712,120]
[339795370,1727987557856,-500.0,0.00036712,120]
[339795371,1727987557870,-806.47,0.00036712,120]
[339795372,1727987557880,-1850.2,0.00036712,120]
[339795373,1727987557891,-496.2093046,0.00036712,120]
[339795374,1727987557900,-500.0,0.00036712,120]
[339795375,1727987557910,-500.0,0.00036712,120]
[339795376,1727987557919,-532.65,0.00036712,120]
[339795377,1727987557929,-500.0,0.00036712,120]
[339795378,1727987557941,-500.0,0.00036712,120]
[339795379,1727987557952,-484.39206799,0.00036712,120]
[339795380,1727987557964,-951.98,0.00036712,120]
[339795381,1727987557974,-3113.1,0.00036712,120]
[339795382,1727987557983,-952.18,0.00036712,120]
[339795383,1727987557992,-1578.27,0.00036712,120]
[339795384,1727987558002,-799.85,0.00036712,120]
[339795385,1727987558012,-504.87648315,0.00036712,120]
[339795386,1727987558022,-708.6,0.00036712,120]
[339795387,1727987558033,-584.82,0.00036712,120]
[339795388,1727987558042,-560.83,0.00036712,120]
[339795389,1727987558054,-610.78,0.00036712,120]
[339795390,1727987558063,-1249.01,0.00036712,120]
[339795391,1727987558074,-342.93594549,0.00036712,120]
[339795392,1727987558084,-500.0,0.00036712,120]
[339795393,1727987558095,-1225.26,0.00036712,120]
[339795394,1727987558105,-911.79,0.00036712,120]
[339795395,1727987558115,-817.82,0.00036712,120]
[339795396,1727987558125,-517.59,0.00036712,120]
[339795397,1727987558136,-1292.49,0.00036712,7]
[339795398,1727987558147,-500.0,0.00036712,120]
[339795399,1727987558156,-762.72,0.00036712,120]
[339795400,1727987558165,-1396.71,0.00036712,120]
[339795401,1727987558176,-1184.87,0.00036712,120]
[339795402,1727987558185,-1701.57,0.00036712,120]
[339795403,1727987558194,-714.2,0.00036712,120]
[339795404,1727987558206,-1713.42,0.00036712,120]
[339795405,1727987558215,-676.51,0.00036712,120]
[339795406,1727987558225,-543.4,0.00036712,120]
[339795407,1727987558234,-615.69,0.00036712,120]
[339795408,1727987558244,-383.41936176,0.00036712,120]
[339795409,1727987558253,-675.57,0.00036712,120]
[339795410,1727987558263,-822.0,0.00036712,120]
[339795411,1727987558272,-500.0,0.00036712,120]
[339795412,1727987558281,-781.4,0.00036712,120]
[339795413,1727987558290,-747.69,0.00036712,120]
[339795414,1727987558300,-500.0,0.00036712,120]
[339795415,1727987558309,-911.34,0.00036712,120]
[339795416,1727987558319,-617.77,0.00036712,120]
[339795417,1727987558328,-500.0,0.00036712,120]
[339795418,1727987558337,-500.0,0.00036712,120]
[339795419,1727987558347,-1099.61,0.00036712,120]
[339795420,1727987558356,-500.0,0.00036712,120]
[339795421,1727987558366,-630.92258346,0.00036712,120]
[339795422,1727987558375,-1245.73,0.00036712,120]
[339795423,1727987558384,-605.0,0.00036712,120]
[339795424,1727987558394,-614.52,0.00036712,120]
[339795425,1727987558403,-570.35,0.00036712,120]
[339795426,1727987558412,-806.75,0.00036712,120]
[339795427,1727987558422,-761.4,0.00036712,120]
[339795428,1727987558431,-500.0,0.00036712,120]
[339795429,1727987558440,-1016.56,0.00036712,120]
[339795430,1727987558450,-500.0,0.00036712,120]
[339795431,1727987558460,-908.19,0.00036712,120]
[339795432,1727987558469,-500.0,0.00036712,120]
[339795433,1727987558479,-650.02,0.00036712,120]
[339795434,1727987558488,-2907.54,0.00036712,120]
[339795435,1727987558497,-1955.84,0.00036712,120]
[339795436,1727987558506,-666.23,0.00036712,120]
[339795437,1727987558516,-619.0,0.00036712,120]
[339795438,1727987558525,-1476.07,0.00036712,120]
[339795439,1727987558534,-500.0,0.00036712,120]
[339795440,1727987558543,-200.0,0.00036712,7]
[339795441,1727987558553,-664.13,0.00036712,120]
[339795442,1727987558562,-580.92,0.00036712,120]
[339795443,1727987558571,-559.23,0.00036712,120]
[339795444,1727987558581,-682.12,0.00036712,120]
[339795445,1727987558590,-662.07,0.00036712,120]
[339795446,1727987558599,-1017.64,0.00036712,120]
[339795447,1727987558609,-1843.32,0.00036712,120]
[339795448,1727987558619,-929.85,0.00036712,120]
[339795449,1727987558630,-903.96,0.00036712,120]
[339795450,1727987558642,-1244.9,0.00036712,120]
[339795451,1727987558652,-2059.5,0.00036712,120]
[339795452,1727987558661,-1208.85,0.00036712,120]
[339795453,1727987558672,-1392.18,0.00036712,120]
[339795454,1727987558683,-1754.22,0.00036712,120]
[339795455,1727987558694,-3096.26,0.00036712,120]
[339795456,1727987558704,-838.34,0.00036712,120]
[339795457,1727987558714,-500.0,0.00036712,120]
[339795458,1727987558724,-767.37,0.00036712,120]
[339795459,1727987558734,-1262.93,0.00036712,120]
[339795460,1727987558744,-900.49,0.00036712,120]
[339795461,1727987558755,-546.33,0.00036712,120]
[339795462,1727987558764,-1915.72,0.00036712,120]
[339795463,1727987558775,-871.88,0.00036712,120]
[339795464,1727987558784,-500.0,0.00036712,120]
[339795465,1727987558793,-542.05,0.00036712,120]
[339795466,1727987558802,-1246.58,0.00036712,120]
[339795467,1727987558811,-755.2,0.00036712,120]
[339795468,1727987558820,-515.39,0.00036712,120]
[339795469,1727987558830,-1449.61,0.00036712,120]
[339795470,1727987558839,-615.97,0.00036712,120]
[339795471,1727987558847,-500.0,0.00036712,120]
[339795472,1727987558859,-828.98,0.00036712,120]
[339795473,1727987558871,-522.48,0.00036712,120]
[339795474,1727987558880,-500.0,0.00036712,120]
[339795475,1727987558889,-769.93,0.00036712,120]
[339795476,1727987558899,-1535.42,0.00036712,120]
[339795477,1727987558910,-692.01,0.00036712,120]
[339795478,1727987558921,-500.0,0.00036712,120]
[339795479,1727987558930,-500.0,0.00036712,120]
[339795480,1727987558941,-435.1790769,0.00036712,120]
[339795481,1727987558952,-617.57,0.00036712,120]
[339795482,1727987558963,-1322.47,0.00036712,120]
[339795483,1727987558973,-3041.51,0.00036712,120]
[339795484,1727987558982,-678.3,0.00036712,120]
[339795485,1727987558991,-685.28,0.00036712,120]
[339795486,1727987559001,-1088.33,0.00036712,120]
[339795487,1727987559011,-809.97,0.00036712,120]
[339795488,1727987559021,-617.35,0.00036712,120]
[339795489,1727987559030,-500.0,0.00036712,120]
[339795490,1727987559039,-504.49,0.00036712,120]
[339795491,1727987559048,-1000.0,0.00036712,120]
[339795492,1727987559057,-2582.55,0.00036712,14]
[339795493,1727987559067,-821.22,0.00036712,120]
[339795494,1727987559076,-500.0,0.00036712,120]
[339795495,1727987559086,-1192.92,0.00036712,120]
[339795496,1727987559095,-752.83,0.00036712,120]
[339795497,1727987559104,-500.0,0.00036712,120]
[339795498,1727987559114,-2036.76,0.00036712,2]
[339795499,1727987559123,-696.33,0.00036712,120]
[339795500,1727987559133,-1822.29,0.00036712,120]
[339795501,1727987559142,-500.0,0.00036712,120]
[339795502,1727987559152,-500.0,0.00036712,120]
[339795503,1727987559161,-1595.23,0.00036712,120]
[339795504,1727987559170,-500.0,0.00036712,120]
[339795505,1727987559180,-1676.96,0.00036712,120]
[339795506,1727987559189,-1430.65,0.00036712,120]
[339795507,1727987559198,-500.0,0.00036712,120]
[339795508,1727987559208,-500.0,0.00036712,120]
[339795509,1727987559220,-1022.58,0.00036712,120]
[339795510,1727987559233,-572.51,0.00036712,120]
[339795511,1727987559243,-743.36,0.00036712,120]
[339795512,1727987559252,-534.34,0.00036712,120]
[339795513,1727987559261,-722.75,0.00036712,120]
[339795514,1727987559271,-2933.87,0.00036712,120]
[339795515,1727987559280,-891.75,0.00036712,120]
[339795516,1727987559289,-734.12,0.00036712,120]
[339795517,1727987559298,-500.0,0.00036712,120]
[339795518,1727987559307,-830.44,0.00036712,120]
[339795519,1727987559317,-2736.92,0.00036712,120]
[339795520,1727987559327,-2840.63,0.00036712,120]
[339795521,1727987559336,-1668.6,0.00036712,120]
[339795522,1727987559345,-963.2,0.00036712,120]
[339795523,1727987559354,-3064.64,0.00036712,120]
[339795524,1727987559363,-895.53,0.00036712,120]
[339795525,1727987559372,-500.0,0.00036712,120]
[339795526,1727987559381,-603.25,0.00036712,120]
[339795527,1727987559391,-893.66,0.00036712,120]
[339795528,1727987559400,-1265.22,0.00036712,120]
[339795529,1727987559409,-648.93,0.00036712,120]
[339795530,1727987559418,-702.69,0.00036712,120]
[339795531,1727987559428,-912.75,0.00036712,120]
[339795532,1727987559437,-625.95,0.00036712,120]
[339795533,1727987559447,-500.0,0.00036712,120]
[339795534,1727987559456,-500.0,0.00036712,120]
[339795535,1727987559468,-589.87,0.00036712,120]
[339795536,1727987559478,-904.15,0.00036712,120]
[339795537,1727987559487,-809.38,0.00036712,120]
[339795538,1727987559496,-500.0,0.00036712,120]
[339795539,1727987559505,-1583.67,0.00036712,120]
[339795540,1727987559514,-2849.48,0.00036712,120]
[339795541,1727987559525,-1559.78,0.00036712,120]
[339795542,1727987559534,-526.9,0.00036712,120]
[339795543,1727987559543,-522.66,0.00036712,120]
[339795544,1727987559552,-887.97,0.00036712,120]
[339795545,1727987559562,-608.69,0.00036712,120]
[339795546,1727987559573,-1196.23,0.00036712,120]
[339795547,1727987559583,-1435.23,0.00036712,120]
[339795548,1727987559591,-1891.17,0.00036712,120]
[339795549,1727987559603,-734.62,0.00036712,120]
[339795550,1727987559616,-1907.44,0.00036712,120]
[339795551,1727987559626,-500.0,0.00036712,5]
[339795552,1727987559636,-954.92,0.00036712,30]
[339795553,1727987559645,-760.37,0.00036712,120]
[339795554,1727987559656,-1267.83,0.00036712,120]
[339795555,1727987559667,-500.0,0.00036712,120]
[339795556,1727987559677,-3152.28,0.00036712,120]
[339795557,1727987559689,-2240.67,0.00036712,120]
[339795558,1727987559699,-500.0,0.00036712,120]
[339795559,1727987559709,-692.31,0.00036712,120]
[339795560,1727987559719,-4273.85,0.00036712,2]
[339795561,1727987559728,-307.09884677,0.00036712,120]
[339795562,1727987559739,-566.42,0.00036712,120]
[339795563,1727987559748,-1375.15,0.00036712,120]
[339795564,1727987559758,-1352.94,0.00036712,120]
[339795565,1727987559769,-2143.59,0.00036712,120]
[339795566,1727987559780,-500.0,0.00036712,120]
[339795567,1727987559791,-500.0,0.00036712,120]
[339795568,1727987559802,-2552.25,0.00036712,120]
[339795569,1727987559812,-807.0,0.00036712,120]
[339795570,1727987559824,-500.0,0.00036712,120]
[339795571,1727987559835,-1929.43,0.00036712,120]
[339795572,1727987559845,-500.0,0.00036712,120]
[339795573,1727987559855,-687.7,0.00036712,120]
[339795574,1727987559870,-500.0,0.00036712,120]
[339795575,1727987559879,-500.0,0.00036712,120]
[339795576,1727987559890,-685.66,0.00036712,120]
[339795577,1727987559900,-500.0,0.00036712,120]
[339795578,1727987559913,-500.0,0.00036712,120]
[339795579,1727987559924,-500.0,0.00036712,120]
[339795580,1727987559935,-1124.73,0.00036712,120]
[339795581,1727987559947,-500.0,0.00036712,120]
[339795582,1727987559956,-1267.04,0.00036712,120]
[339795583,1727987559966,-1073.96,0.00036712,120]
[339795584,1727987559975,-687.49,0.00036712,120]
[339795585,1727987559985,-515.88,0.00036712,120]
[339795586,1727987559995,-924.47,0.00036712,120]
[339795587,1727987560004,-3529.62,0.00036712,120]
[339795588,1727987560013,-500.0,0.00036712,120]
[339795589,1727987560025,-500.0,0.00036712,120]
[339795590,1727987560034,-2122.92,0.00036712,120]
[339795591,1727987560044,-1443.8,0.00036712,120]
[339795592,1727987560054,-583.93,0.00036712,120]
[339795593,1727987560065,-1130.17,0.00036712,120]
[339795594,1727987560076,-598.1,0.00036712,120]
[339795595,1727987560085,-500.0,0.00036712,120]
[339795596,1727987560095,-512.25,0.00036712,120]
[339795597,1727987560104,-739.66,0.00036712,120]
[339795598,1727987560113,-2221.7,0.00036712,120]
[339795599,1727987560123,-878.47,0.00036712,120]
[339795600,1727987560132,-753.47,0.00036712,120]
[339795601,1727987560141,-2105.23,0.00036712,120]
[339795602,1727987560150,-880.23,0.00036712,120]
[339795603,1727987560160,-1101.24,0.00036712,120]
[339795604,1727987560169,-500.0,0.00036712,120]
[339795605,1727987560180,-594.49,0.00036712,120]
[339795606,1727987560191,-500.0,0.00036712,120]
[339795607,1727987560201,-1746.33,0.00036712,120]
[339795608,1727987560212,-983.59,0.00036712,120]
[339795609,1727987560222,-1535.26,0.00036712,120]
[339795610,1727987560231,-3156.06,0.00036712,120]
[339795611,1727987560243,-889.14,0.00036712,120]
[339795612,1727987560254,-754.45,0.00036712,120]
[339795613,1727987560264,-2375.19,0.00036712,120]
[339795614,1727987560273,-640.32,0.00036712,120]
[339795615,1727987560283,-500.0,0.00036712,120]
[339795616,1727987560292,-580.84,0.00036712,120]
[339795617,1727987560302,-2171.15,0.00036712,120]
[339795618,1727987560311,-652.15,0.00036712,120]
[339795619,1727987560320,-970.9,0.00036712,120]
[339795620,1727987560330,-576.98,0.00036712,120]
[339795621,1727987560339,-2322.76,0.00036712,120]
[339795622,1727987560348,-2446.1,0.00036712,120]
[339795623,1727987560358,-500.0,0.00036712,120]
[339795624,1727987560367,-569.39,0.00036712,120]
[339795625,1727987560376,-865.83,0.00036712,120]
[339795626,1727987560386,-500.0,0.00036712,120]
[339795627,1727987560396,-559.14,0.00036712,120]
[339795628,1727987560406,-500.0,0.00036712,120]
[339795629,1727987560415,-526.15,0.00036712,120]
[339795630,1727987560425,-500.0,0.00036712,120]
[339795631,1727987560434,-500.0,0.00036712,120]
[339795632,1727987560443,-1022.47,0.00036712,120]
[339795633,1727987560452,-1404.02,0.00036712,120]
[339795634,1727987560462,-500.0,0.00036712,120]
[339795635,1727987560471,-641.91,0.00036712,120]
[339795636,1727987560480,-926.29,0.00036712,120]
[339795637,1727987560490,-796.9,0.00036712,120]
[339795638,1727987560499,-2021.14,0.00036712,120]
[339795639,1727987560508,-3420.05,0.00036712,120]
[339795640,1727987560517,-500.0,0.00036712,120]
[339795641,1727987560527,-585.28,0.00036712,120]
[339795642,1727987560536,-920.88,0.00036712,120]
[339795643,1727987560545,-1372.22,0.00036712,120]
[339795644,1727987560555,-501.73,0.00036712,120]
[339795645,1727987560564,-1014.09,0.00036712,120]
[339795646,1727987560573,-2342.53,0.00036712,120]
[339795647,1727987560584,-849.67,0.00036712,120]
[339795648,1727987560593,-500.0,0.00036712,120]
[339795649,1727987560603,-503.33,0.00036712,120]
[339795650,1727987560613,-650.32,0.00036712,120]
[339795651,1727987560624,-619.95,0.00036712,120]
[339795652,1727987560634,-4513.04,0.00036712,120]
[339795653,1727987560643,-697.86,0.00036712,120]
[339795654,1727987560653,-1906.45,0.00036712,120]
[339795655,1727987560662,-500.0,0.00036712,120]
[339795656,1727987560673,-500.0,0.00036712,120]
[339795657,1727987560685,-500.0,0.00036712,120]
[339795658,1727987560695,-1342.8,0.00036712,120]
[339795659,1727987560704,-4469.7,0.00036712,120]
[339795660,1727987560715,-2820.31,0.00036712,120]
[339795661,1727987560725,-1714.59,0.00036712,120]
[339795662,1727987560734,-1567.97,0.00036712,120]
[339795663,1727987560743,-858.96,0.00036712,120]
[339795664,1727987560754,-1071.24,0.00036712,120]
[339795665,1727987560764,-1083.26,0.00036712,120]
[339795666,1727987560775,-1923.73,0.00036712,120]
[339795667,1727987560784,-3953.73,0.00036712,120]
[339795668,1727987560795,-1541.86,0.00036712,120]
[339795669,1727987560806,-646.54,0.00036712,120]
[339795670,1727987560816,-2326.51,0.00036712,120]
[339795671,1727987560825,-825.35,0.00036712,120]
[339795672,1727987560836,-1401.87,0.00036712,120]
[339795673,1727987560847,-8162.3,0.00036712,120]
[339795674,1727987560858,-2202.86,0.00036712,3]
[339795675,1727987560871,-1721.6,0.00036712,120]
[339795676,1727987560880,-1824.09,0.00036712,120]
[339795677,1727987560891,-500.0,0.00036712,120]
[339795678,1727987560901,-797.25,0.00036712,120]
[339795679,1727987560910,-3694.14,0.00036712,120]
[339795680,1727987560919,-648.29,0.00036712,120]
[339795681,1727987560929,-1962.84,0.00036712,120]
[339795682,1727987560939,-770.99,0.00036712,120]
[339795683,1727987560950,-1812.58,0.00036712,120]
[339795684,1727987560960,-1106.97,0.00036712,120]
[339795685,1727987560969,-995.24,0.00036712,120]
[339795686,1727987560978,-1533.42,0.00036712,120]
[339795687,1727987560987,-1245.45,0.00036712,120]
[339795688,1727987561000,-2708.28,0.00036712,120]
[339795689,1727987561202,-919.76,0.00036712,120]
[339795690,1727987561213,-1028.68,0.00036712,120]
[339795691,1727987561222,-630.07841182,0.00036712,120]
[339795692,1727987561231,-2392.87,0.00036712,120]
[339795693,1727987561241,-222.00864621,0.00036712,120]
[339795694,1727987561251,-1219.91,0.00036712,120]
[339795695,1727987561260,-521.20469457,0.00036712,120]
[339795696,1727987561269,-1971.05,0.00036712,120]
[339795697,1727987561279,-967.14,0.00036712,120]
[339795698,1727987561288,-11039.47,0.00036712,120]
[339795699,1727987561297,-1835.01,0.00036712,120]
[339795700,1727987561307,-647.95,0.00036712,120]
[339795701,1727987561316,-1066.51,0.00036712,120]
[339795702,1727987561325,-2065.61,0.00036712,120]
[339795703,1727987561335,-2041.33,0.00036712,120]
[339795704,1727987561344,-500.0,0.00036712,120]
[339795705,1727987561354,-500.0,0.00036712,120]
[339795706,1727987561363,-701.71,0.00036712,120]
[339795707,1727987561372,-512.38,0.00036712,120]
[339795708,1727987561382,-527.76,0.00036712,120]
[339795709,1727987561391,-527.0,0.00036712,120]
[339795710,1727987561400,-1302.4,0.00036712,120]
[339795711,1727987561410,-968.42,0.00036712,120]
[339795712,1727987561419,-1041.18,0.00036712,120]
[339795713,1727987561428,-500.0,0.00036712,120]
[339795714,1727987561438,-2058.43,0.00036712,120]
[339795715,1727987561447,-1510.82,0.00036712,120]
[339795716,1727987561457,-2566.99,0.00036712,120]
[339795717,1727987561468,-1635.85,0.00036712,120]
[339795718,1727987561478,-500.52,0.00036712,120]
[339795719,1727987561488,-1123.06,0.00036712,120]
[339795720,1727987561498,-1766.39,0.00036712,120]
[339795721,1727987561507,-1421.18,0.00036712,120]
[339795722,1727987561516,-2301.76,0.00036712,120]
[339795723,1727987561525,-1093.77,0.00036712,120]
[339795724,1727987561535,-2041.08,0.00036712,120]
[339795725,1727987561544,-1056.72,0.00036712,120]
[339795726,1727987561553,-500.0,0.00036712,120]
[339795727,1727987561563,-4824.18,0.00036712,120]
[339795728,1727987561572,-575.99,0.00036712,120]
[339795729,1727987561582,-2539.88,0.00036712,120]
[339795730,1727987561591,-1058.32,0.00036712,120]